fUSD/lending_fUSD_20250525
["ID","MTS","AMOUNT","RATE_DAILY","PERIOD"]
[362310907,1748181045660,-151.0,0.00019999,2]
[362310908,1748181045670,-151.0,0.00019999,2]
[362310909,1748181045679,-866.899575,0.00019999,2]
[362310910,1748181045689,-866.899575,0.00019999,2]
[362310911,1748181045699,-564.93614845,0.00019999,2]
[362310912,1748181045709,-420.0,0.00019999,2]
[362310913,1748181045719,-420.0,0.00019999,2]
[362310914,1748181045733,-420.0,0.00019999,2]
[362310915,1748181045742,-420.0,0.00019999,2]
[362310916,1748181045752,-866.899575,0.00019999,2]
[362310917,1748181045762,-420.0,0.00019999,2]
[362310918,1748181045772,-420.0,0.00019999,2]
[362310919,1748181045781,-420.0,0.00019999,2]
[362310920,1748181045791,-866.899575,0.00019999,2]
[362310921,1748181045800,-420.0,0.00019999,2]
[362310922,1748181045811,-420.0,0.00019999,2]
[362310923,1748181045820,-420.0,0.00019999,2]
[362310924,1748181045829,-420.0,0.00019999,2]
[362310925,1748181045839,-420.0,0.00019999,2]
[362310926,1748181045849,-420.0,0.00019999,2]
[362310927,1748181045859,-420.0,0.00019999,2]
[362310928,1748181045868,-420.0,0.00019999,2]
[362310929,1748181045878,-420.0,0.00019999,2]
[362310930,1748181045888,-420.0,0.00019999,2]
[362310931,1748181045898,-335.31,0.00019999,2]
[362310932,1748181045907,-188.869992,0.00019999,2]
[362310933,1748181045917,-420.0,0.00019999,2]
[362310934,1748181045926,-224.14026986,0.00019999,2]
[362310935,1748181045935,-420.0,0.00019999,2]
[362310936,1748181045945,-420.0,0.00019999,2]
[362310937,1748181045955,-491.076,0.00019999,2]
[362310938,1748181045964,-512.0,0.0002,2]
[362310939,1748181045974,-16221.47250871,0.0002,2]
[362310940,1748181046100,-420.0,0.00019999,2]
[362310941,1748181046109,-420.0,0.00019999,2]
[362310942,1748181046118,-420.0,0.00019999,2]
[362310943,1748181046128,-420.0,0.00019999,2]
[362310944,1748181046137,-420.0,0.00019999,2]
[362310945,1748181046147,-420.0,0.00019999,2]
[362310946,1748181046156,-420.0,0.00019999,2]
[362310947,1748181046165,-420.0,0.00019999,2]
[362310948,1748181046174,-420.0,0.00019999,2]
[362310949,1748181046183,-420.0,0.00019999,2]
[362310950,1748181046192,-458.94448611,0.00019999,2]
[362310951,1748181046201,-151.0,0.00019999,2]
[362310952,1748181046210,-151.0,0.00019999,2]
[362310953,1748181046219,-103596.89275689,0.0002,2]
[362310954,1748181046230,-416.54036063,0.0002,2]
[362310955,1748181046241,-470.4,0.0002,2]
[362310956,1748181046273,-681.84589976,0.00019995,2]
[362310957,1748181046282,-681.84589976,0.00019995,2]
[362310958,1748181046291,-324.19487658,0.0002,2]
[362310959,1748181046335,-1585.33036016,0.0002,2]
[362310960,1748181046517,-444.12181444,0.00019995,2]
[362310961,1748181046548,-237.72408532,0.00019995,2]
[362310962,1748181046557,-681.84589976,0.00019995,2]
[362310963,1748181046566,-48.1557303,0.00019995,2]
[362310964,1748181046596,-633.69016946,0.00019995,2]
[362310965,1748181046605,-681.84589976,0.00019995,2]
[362310966,1748181046614,-681.84589976,0.00019995,2]
[362310967,1748181046623,-681.84589976,0.00019995,2]
[362310968,1748181046632,-681.84589976,0.00019995,2]
[362310969,1748181046641,-681.84589976,0.00019995,2]
[362310970,1748181046650,-681.84589976,0.00019995,2]
[362310971,1748181046660,-681.84589976,0.00019995,2]
[362310972,1748181046669,-420.0,0.00019998,2]
[362310973,1748181046678,-151.0,0.00019999,2]
[362310974,1748181046687,-420.0,0.00019999,2]
[362310975,1748181046696,-420.0,0.00019999,2]
[362310976,1748181046705,-3518.38148218,0.0002,2]
[362310980,1748181082393,10000.0,0.00027397,120]
[362310984,1748181192529,350.317462,0.00025999,120]
[362310985,1748181194593,2114.872973,0.00025999,120]
[362310986,1748181199348,500.0,0.00025999,120]
[362310990,1748181229597,-205.0,0.00017092,2]
[362310991,1748181230996,-245.14006397,0.00017092,2]
[362310992,1748181232501,-246.66993603,0.00017092,2]
[362310993,1748181236801,1000.0,0.00027397,120]
[362310994,1748181236840,1009.08195852,0.00027397,120]
[362310997,1748181335367,1826.0,0.00017,2]
[362310998,1748181335391,30000.0,0.00017,2]
[362310999,1748181345737,10000.0,0.00027397,120]
[362311000,1748181384866,1569.02,0.00026041,120]
[362311001,1748181621687,427.0,0.00027397,120]
[362311002,1748181733939,-152.0,0.00016945,2]
[362311003,1748181735990,-54.0,0.00016945,2]
[362311004,1748181736014,-159.62924603,0.00017,2]
[362311005,1748181740916,-317.25573679,0.00017,2]
[362311006,1748181743366,-162.91426321,0.00017,2]
[362311007,1748181750297,-419.77112236,0.00017,2]
[362311008,1748181757204,-169.51201583,0.00017,2]
[362311009,1748181760826,-160.8651393,0.00017,2]
[362311010,1748181764414,-236.71937516,0.00017,2]
[362311011,1748181765784,-160.14915463,0.00017,2]
[362311012,1748181768288,-298.54528828,0.00017,2]
[362311013,1748181774079,-344.66,0.00017,2]
[362311014,1748181777619,-152.0,0.00017,2]
[362311015,1748181779626,3137.28062346,0.00027397,120]
[362311016,1748181781823,-425.12,0.00017,2]
[362311017,1748181789067,-198.59186998,0.00017,2]
[362311018,1748181791609,-171.90880461,0.00016945,2]
[362311019,1748181796517,500.0,0.00027396,120]
[362311020,1748181798462,-31.09119539,0.00016945,2]
[362311021,1748181798486,-139.39176874,0.00017,2]
[362311022,1748181804335,-223.78096518,0.00017,2]
[362311023,1748181806863,-214.15741439,0.00017,2]
[362311024,1748181808985,-214.26258561,0.00017,2]
[362311025,1748181813370,-211.25783763,0.00017,2]
[362311026,1748181822101,-290.85797411,0.00017,2]
[362311027,1748181828739,-420.0,0.00017,2]
[362311028,1748181830661,-420.0,0.00017,2]
[362311029,1748181832068,-420.0,0.00017,2]
[362311030,1748181837648,-300.0,0.00017,2]
[362311031,1748181844721,493.87,0.00013699,2]
[362311032,1748181845248,-420.0,0.00017,2]
[362311033,1748181847865,-420.0,0.00017,2]
[362311035,1748181854835,-251.19133878,0.00017,2]
[362311036,1748181855494,2000.0,0.00027397,120]
[362311037,1748181861263,-191.93480907,0.00017,2]
[362311038,1748181862816,-151.49541747,0.00017,2]
[362311039,1748181866920,-215.3774316,0.00017,2]
[362311040,1748181870382,-194.75367083,0.00017,2]
[362311041,1748181874923,-152.07869734,0.00017,2]
[362311042,1748182032158,-206.0,0.00016945,2]
[362311043,1748182032179,-172.02447147,0.00017,2]
[362311044,1748182034187,-881.16729859,0.00017,2]
[362311045,1748182040121,-193.83510881,0.00017,2]
[362311046,1748182044129,-1789.92876309,0.00017,2]
[362311049,1748182147129,-1107.68263952,0.00017,2]
[362311050,1748182151162,-724.00838717,0.00017,2]
[362311051,1748182151273,-722.5177476,0.00017,2]
[362311052,1748182155127,-673.37230293,0.00017,2]
[362311053,1748182157096,-1070.43933715,0.00017,2]
[362311054,1748182159109,-879.25488611,0.00017,2]
[362311055,1748182159141,-908.803,0.00017,2]
[362311056,1748182172352,-490.0,0.00017,2]
[362311057,1748182173097,-702.52181197,0.00017,2]
[362311058,1748182173123,-864.2711483,0.00017,2]
[362311059,1748182204347,250.0,0.00015,2]
[362311071,1748182231461,-845.09770921,0.00017,2]
[362311077,1748182231519,-11330.06107229,0.00017,2]
[362311078,1748182231632,-35416.1047022,0.00017,2]
[362311079,1748182231692,-25392.8643615,0.00017,2]
[362311080,1748182231701,-501.10424252,0.00017,2]
[362311081,1748182231711,-300.0,0.00017,2]
[362311082,1748182231721,-250.0,0.00017192,2]
[362311083,1748182231730,-200.0,0.00017385,2]
[362311084,1748182231740,-200.0,0.00017769,2]
[362311085,1748182231751,-200.0,0.00018299,2]
[362311086,1748182231760,-997.55,0.00018368,2]
[362311087,1748182231769,-1131.15,0.00018453,2]
[362311088,1748182231779,-1449.84,0.00018475,2]
[362311089,1748182231788,-209.30344824,0.00018561,2]
[362311090,1748182231798,-268.11,0.00018594,2]
[362311091,1748182231807,-2363.59,0.00018615,2]
[362311093,1748182231817,-227.0,0.00018633,2]
[362311094,1748182231826,-1200.0,0.00018639,2]
[362311095,1748182231836,-200.0,0.0001864,2]
[362311096,1748182231845,-500.0,0.00018661,2]
[362311097,1748182231855,-250.0,0.0001868,2]
[362311098,1748182231864,-200.0,0.000187,2]
[362311099,1748182231873,-250.0,0.000187,2]
[362311100,1748182231883,-250.0,0.000187,2]
[362311101,1748182231892,-150.0,0.00018722,2]
[362311102,1748182231902,-300.0,0.00018762,2]
[362311103,1748182231911,-200.0,0.00018763,2]
[362311104,1748182231920,-4000.0,0.00018841,2]
[362311107,1748182231930,-1000.0,0.00018895,2]
[362311109,1748182231939,-300.0,0.00018938,2]
[362311112,1748182231959,-1569.02,0.00018939,2]
[362311113,1748182231970,-845.85,0.00018939,2]
[362311116,1748182231981,-23900.0,0.00018992,2]
[362311117,1748182231990,-2339.01,0.00018997,2]
[362311118,1748182232000,-151.0,0.00018999,2]
[362311119,1748182232010,-207.4,0.00018999,2]
[362311120,1748182232020,-350.0,0.00019,2]
[362311121,1748182232030,-170.59,0.00019061,2]
[362311123,1748182232040,-170.59,0.0001908,2]
[362311125,1748182232050,-921.2,0.0001908,2]
[362311127,1748182232060,-150.99,0.0001908,2]
[362311129,1748182232069,-170.59,0.00019099,2]
[362311130,1748182232079,-150.99,0.00019099,2]
[362311131,1748182232089,-9999.99,0.00019099,2]
[362311132,1748182232099,-170.59,0.00019118,2]
[362311133,1748182232108,-170.59,0.00019137,2]
[362311134,1748182232119,-170.59,0.00019156,2]
[362311135,1748182232131,-696.81,0.00019356,2]
[362311136,1748182232141,-500.0,0.00019507,2]
[362311137,1748182232151,-151.149996,0.00019599,2]
[362311138,1748182232161,-767.9241447,0.00019749,2]
[362311139,1748182232173,-20573.82313996,0.000198,2]
[362311140,1748182232184,-189.91727569,0.00019899,2]
[362311141,1748182232193,-200.6230751,0.000199,2]
[362311142,1748182232205,-189.91727568,0.000199,2]
[362311143,1748182232216,-12426.60292871,0.000199,2]
[362311144,1748182232226,-500.0,0.00019973,2]
[362311145,1748182232236,-500.0,0.00019973,2]
[362311146,1748182232247,-500.0,0.00019973,2]
[362311147,1748182232256,-500.0,0.00019973,2]
[362311148,1748182232266,-500.0,0.00019973,2]
[362311149,1748182232275,-501.13915282,0.00019973,2]
[362311150,1748182232288,-500.0,0.00019973,2]
[362311151,1748182232298,-222.576,0.00019979,2]
[362311152,1748182232311,-1197.47,0.00019989,2]
[362311153,1748182232322,-420.0,0.00019996,2]
[362311154,1748182232332,-420.0,0.00019996,2]
[362311155,1748182232343,-150.0,0.00019998,2]
[362311156,1748182232353,-150.0,0.00019998,2]
[362311157,1748182232364,-420.0,0.00019998,2]
[362311158,1748182232376,-420.0,0.00019998,2]
[362311159,1748182232386,-420.0,0.00019998,2]
[362311160,1748182232395,-188.09228705,0.00019998,2]
[362311161,1748182232406,-150.0,0.00019998,2]
[362311162,1748182232417,-420.0,0.00019998,2]
[362311163,1748182232428,-420.0,0.00019998,2]
[362311164,1748182232438,-420.0,0.00019998,2]
[362311165,1748182232448,-420.0,0.00019998,2]
[362311166,1748182232457,-551.48,0.00019998,2]
[362311167,1748182232468,-420.0,0.00019998,2]
[362311168,1748182232478,-420.0,0.00019998,2]
[362311169,1748182232487,-420.0,0.00019998,2]
[362311170,1748182232497,-420.0,0.00019998,2]
[362311171,1748182232506,-420.0,0.00019998,2]
[362311172,1748182232516,-420.0,0.00019998,2]
[362311173,1748182232526,-420.0,0.00019998,2]
[362311174,1748182232536,-263.57166918,0.00019998,2]
[362311175,1748182232546,-203.97285334,0.00019998,2]
[362311176,1748182232556,-643.66252937,0.00019998,2]
[362311177,1748182232566,-163.44749072,0.00019998,2]
[362311178,1748182232576,-643.66252937,0.00019998,2]
[362311179,1748182232585,-643.66252937,0.00019998,2]
[362311180,1748182232594,-643.66252937,0.00019998,2]
[362311181,1748182232603,-643.66252937,0.00019998,2]
[362311182,1748182232613,-643.66252937,0.00019998,2]
[362311183,1748182232622,-643.66252937,0.00019998,2]
[362311184,1748182232631,-643.66252937,0.00019998,2]
[362311185,1748182232640,-643.66252937,0.00019998,2]
[362311186,1748182232650,-643.66252937,0.00019998,2]
[362311187,1748182232663,-643.66252937,0.00019998,2]
[362311188,1748182232673,-643.66252937,0.00019998,2]
[362311189,1748182232682,-662.05288735,0.00019998,2]
[362311190,1748182232692,-662.05288735,0.00019998,2]
[362311191,1748182232701,-662.05288735,0.00019998,2]
[362311192,1748182232710,-662.05288735,0.00019998,2]
[362311193,1748182232720,-662.05288735,0.00019998,2]
[362311194,1748182232730,-662.05288735,0.00019998,2]
[362311195,1748182232739,-662.05288735,0.00019998,2]
[362311196,1748182232749,-662.05288735,0.00019998,2]
[362311197,1748182232758,-662.05288735,0.00019998,2]
[362311198,1748182232768,-839.8984669,0.00019998,2]
[362311199,1748182232777,-839.8984669,0.00019998,2]
[362311200,1748182232787,-839.8984669,0.00019998,2]
[362311201,1748182232796,-152.484664,0.00019999,2]
[362311202,1748182232806,-168.031229,0.00019999,2]
[362311203,1748182232816,-155.664863,0.00019999,2]
[362311204,1748182232825,-248.474202,0.00019999,2]
[362311205,1748182232835,-248.474202,0.00019999,2]
[362311206,1748182232845,-248.474202,0.00019999,2]
[362311207,1748182232855,-248.474202,0.00019999,2]
[362311208,1748182232864,-248.474202,0.00019999,2]
[362311209,1748182232874,-248.474202,0.00019999,2]
[362311210,1748182232884,-420.0,0.00019999,2]
[362311211,1748182232894,-420.0,0.00019999,2]
[362311212,1748182232903,-420.0,0.00019999,2]
[362311213,1748182232913,-420.0,0.00019999,2]
[362311214,1748182232923,-420.0,0.00019999,2]
[362311215,1748182232934,-420.0,0.00019999,2]
[362311216,1748182232944,-420.0,0.00019999,2]
[362311217,1748182232954,-420.0,0.00019999,2]
[362311218,1748182232965,-420.0,0.00019999,2]
[362311219,1748182232977,-291.58,0.00019999,2]
[362311220,1748182232986,-396.82100708,0.00019999,2]
[362311221,1748182232996,-420.0,0.00019999,2]
[362311222,1748182233006,-420.0,0.00019999,2]
[362311223,1748182233016,-420.0,0.00019999,2]
[362311224,1748182233026,-420.0,0.00019999,2]
[362311225,1748182233035,-420.0,0.00019999,2]
[362311226,1748182233045,-420.0,0.00019999,2]
[362311227,1748182233055,-420.0,0.00019999,2]
[362311228,1748182233064,-532.46644996,0.00019999,2]
[362311229,1748182233074,-420.0,0.00019999,2]
[362311230,1748182233084,-420.0,0.00019999,2]
[362311231,1748182233093,-420.0,0.00019999,2]
[362311232,1748182233103,-420.0,0.00019999,2]
[362311233,1748182233113,-276.41541697,0.00019999,2]
[362311234,1748182233122,-237.13985235,0.00019999,2]
[362311235,1748182233131,-151.0,0.00019999,2]
[362311236,1748182233140,-420.0,0.00019999,2]
[362311237,1748182233150,-420.0,0.00019999,2]
[362311238,1748182233160,-420.0,0.00019999,2]
[362311239,1748182233170,-420.0,0.00019999,2]
[362311240,1748182233180,-420.0,0.00019999,2]
[362311241,1748182233189,-420.0,0.00019999,2]
[362311242,1748182233200,-300.24919745,0.00019999,2]
[362311243,1748182233217,-152.142395,0.00019999,2]
[362311244,1748182233227,-5410.77,0.00019999,2]
[362311245,1748182233236,-151.0,0.00019999,2]
[362311246,1748182233247,-151.0,0.00019999,2]
[362311247,1748182233257,-151.0,0.00019999,2]
[362311248,1748182233267,-151.0,0.00019999,2]
[362311249,1748182233278,-420.0,0.00019999,2]
[362311250,1748182233288,-420.0,0.00019999,2]
[362311251,1748182233298,-420.0,0.00019999,2]
[362311252,1748182233307,-420.0,0.00019999,2]
[362311253,1748182233317,-420.0,0.00019999,2]
[362311254,1748182233326,-420.0,0.00019999,2]
[362311255,1748182233336,-420.0,0.00019999,2]
[362311256,1748182233346,-420.0,0.00019999,2]
[362311257,1748182233355,-420.0,0.00019999,2]
[362311258,1748182233365,-420.0,0.00019999,2]
[362311259,1748182233375,-420.0,0.00019999,2]
[362311260,1748182233385,-420.0,0.00019999,2]
[362311261,1748182233395,-420.0,0.00019999,2]
[362311262,1748182233404,-420.0,0.00019999,2]
[362311263,1748182233704,-420.0,0.00019999,2]
[362311264,1748182233714,-420.0,0.00019999,2]
[362311265,1748182233724,-552.38,0.00019999,2]
[362311266,1748182233733,-420.0,0.00019999,2]
[362311267,1748182233743,-420.0,0.00019999,2]
[362311268,1748182233752,-420.0,0.00019999,2]
[362311269,1748182233762,-420.0,0.00019999,2]
[362311270,1748182233771,-420.0,0.00019999,2]
[362311271,1748182233781,-151.0,0.00019999,2]
[362311272,1748182233790,-420.0,0.00019999,2]
[362311273,1748182233799,-420.0,0.00019999,2]
[362311274,1748182233808,-395.22,0.00019999,2]
[362311275,1748182233818,-420.0,0.00019999,2]
[362311276,1748182233828,-420.0,0.00019999,2]
[362311277,1748182233837,-420.0,0.00019999,2]
[362311278,1748182233847,-383.14,0.00019999,2]
[362311279,1748182233856,-154.812246,0.00019999,2]
[362311280,1748182233865,-151.0,0.00019999,2]
[362311281,1748182233875,-420.0,0.00019999,2]
[362311282,1748182233884,-151.0,0.00019999,2]
[362311283,1748182233894,-151.0,0.00019999,2]
[362311284,1748182233904,-775.06,0.00019999,2]
[362311285,1748182233913,-157.503714,0.00019999,2]
[362311286,1748182233923,-775.06,0.00019999,2]
[362311287,1748182233932,-775.06,0.00019999,2]
[362311288,1748182233942,-775.06,0.00019999,2]
[362311289,1748182233952,-775.06,0.00019999,2]
[362311290,1748182233961,-775.06,0.00019999,2]
[362311291,1748182233971,-775.06,0.00019999,2]
[362311292,1748182233980,-775.06,0.00019999,2]
[362311293,1748182233990,-775.06,0.00019999,2]
[362311294,1748182234000,-775.06,0.00019999,2]
[362311295,1748182234009,-775.06,0.00019999,2]
[362311296,1748182234019,-775.06,0.00019999,2]
[362311297,1748182234028,-775.06,0.00019999,2]
[362311298,1748182234038,-775.06,0.00019999,2]
[362311299,1748182234047,-775.06,0.00019999,2]
[362311300,1748182234057,-775.06,0.00019999,2]
[362311301,1748182234066,-775.06,0.00019999,2]
[362311302,1748182234076,-775.06,0.00019999,2]
[362311303,1748182234086,-775.06,0.00019999,2]
[362311304,1748182234095,-775.06,0.00019999,2]
[362311305,1748182234105,-775.06,0.00019999,2]
[362311306,1748182234114,-775.06,0.00019999,2]
[362311307,1748182234124,-775.06,0.00019999,2]
[362311308,1748182234134,-775.26,0.00019999,2]
[362311309,1748182234143,-188.869992,0.00019999,2]
[362311310,1748182234153,-420.0,0.00019999,2]
[362311311,1748182234162,-420.0,0.00019999,2]
[362311312,1748182234171,-420.0,0.00019999,2]
[362311313,1748182234180,-151.0,0.00019999,2]
[362311314,1748182234189,-420.0,0.00019999,2]
[362311315,1748182234198,-420.0,0.00019999,2]
[362311316,1748182234211,-420.0,0.00019999,2]
[362311317,1748182234220,-420.0,0.00019999,2]
[362311318,1748182234229,-420.0,0.00019999,2]
[362311319,1748182234239,-420.0,0.00019999,2]
[362311320,1748182234248,-420.0,0.00019999,2]
[362311321,1748182234257,-420.0,0.00019999,2]
[362311322,1748182234266,-420.0,0.00019999,2]
[362311323,1748182234275,-420.0,0.00019999,2]
[362311324,1748182234285,-420.0,0.00019999,2]
[362311325,1748182234295,-420.0,0.00019999,2]
[362311326,1748182234304,-420.0,0.00019999,2]
[362311327,1748182234313,-420.0,0.00019999,2]
[362311328,1748182234323,-420.0,0.00019999,2]
[362311329,1748182234331,-420.0,0.00019999,2]
[362311330,1748182234340,-420.0,0.00019999,2]
[362311331,1748182234350,-550.38291682,0.00019999,2]
[362311332,1748182234359,-420.0,0.00019999,2]
[362311333,1748182234368,-420.0,0.00019999,2]
[362311334,1748182234378,-420.0,0.00019999,2]
[362311335,1748182234386,-420.0,0.00019999,2]
[362311336,1748182234395,-420.0,0.00019999,2]
[362311337,1748182234404,-359.53,0.00019999,2]
[362311338,1748182234413,-151.0,0.00019999,2]
[362311339,1748182234423,-420.0,0.00019999,2]
[362311340,1748182234431,-420.0,0.00019999,2]
[362311341,1748182234440,-151.0,0.00019999,2]
[362311342,1748182234449,-1000.41,0.00019999,2]
[362311343,1748182234458,-1000.41,0.00019999,2]
[362311344,1748182234467,-1000.41,0.00019999,2]
[362311345,1748182234476,-1000.41,0.00019999,2]
[362311346,1748182234486,-1000.41,0.00019999,2]
[362311347,1748182234495,-1000.41,0.00019999,2]
[362311348,1748182234504,-1000.41,0.00019999,2]
[362311349,1748182234514,-1000.41,0.00019999,2]
[362311350,1748182234523,-1000.41,0.00019999,2]
[362311351,1748182234532,-1000.41,0.00019999,2]
[362311352,1748182234540,-151.0,0.00019999,2]
[362311353,1748182234550,-1000.41,0.00019999,2]
[362311354,1748182234559,-1000.41,0.00019999,2]
[362311355,1748182234568,-1000.41,0.00019999,2]
[362311356,1748182234579,-210.566361,0.00019999,2]
[362311357,1748182234588,-1000.41,0.00019999,2]
[362311358,1748182234597,-1000.41,0.00019999,2]
[362311359,1748182234614,-1000.41,0.00019999,2]
[362311360,1748182234624,-1000.41,0.00019999,2]
[362311361,1748182234637,-1000.41,0.00019999,2]
[362311362,1748182234646,-1000.41,0.00019999,2]
[362311363,1748182234656,-1000.41,0.00019999,2]
[362311364,1748182234668,-1000.41,0.00019999,2]
[362311365,1748182234678,-1000.41,0.00019999,2]
[362311366,1748182234687,-1000.41,0.00019999,2]
[362311367,1748182234707,-1000.64520631,0.00019999,2]
[362311368,1748182234718,-210.566361,0.00019999,2]
[362311369,1748182234728,-420.0,0.00019999,2]
[362311370,1748182234741,-151.0,0.00019999,2]
[362311371,1748182234751,-420.0,0.00019999,2]
[362311372,1748182234763,-420.0,0.00019999,2]
[362311373,1748182234783,-420.0,0.00019999,2]
[362311374,1748182234794,-420.0,0.00019999,2]
[362311375,1748182234805,-420.0,0.00019999,2]
[362311376,1748182234816,-420.0,0.00019999,2]
[362311377,1748182234827,-420.0,0.00019999,2]
[362311378,1748182234838,-420.0,0.00019999,2]
[362311379,1748182234849,-420.0,0.00019999,2]
[362311380,1748182234860,-420.0,0.00019999,2]
[362311381,1748182234870,-420.0,0.00019999,2]
[362311382,1748182234883,-495.98,0.00019999,2]
[362311383,1748182234893,-164.035492,0.00019999,2]
[362311384,1748182234902,-420.0,0.00019999,2]
[362311385,1748182234912,-550.41,0.00019999,2]
[362311386,1748182234923,-480.37,0.00019999,2]
[362311387,1748182234933,-480.37,0.00019999,2]
[362311388,1748182234943,-480.37,0.00019999,2]
[362311389,1748182234952,-480.37,0.00019999,2]
[362311390,1748182234963,-480.37,0.00019999,2]
[362311391,1748182234973,-480.37,0.00019999,2]
[362311392,1748182234983,-480.37,0.00019999,2]
[362311393,1748182234992,-480.37,0.00019999,2]
[362311394,1748182235002,-155.653885,0.00019999,2]
[362311395,1748182235011,-480.37,0.00019999,2]
[362311396,1748182235021,-480.37,0.00019999,2]
[362311397,1748182235030,-480.37,0.00019999,2]
[362311398,1748182235040,-480.37,0.00019999,2]
[362311399,1748182235049,-480.37,0.00019999,2]
[362311400,1748182235059,-480.37,0.00019999,2]
[362311401,1748182235068,-480.37,0.00019999,2]
[362311402,1748182235078,-480.37,0.00019999,2]
[362311403,1748182235088,-480.37,0.00019999,2]
[362311404,1748182235097,-480.37,0.00019999,2]
[362311405,1748182235107,-480.37,0.00019999,2]
[362311406,1748182235116,-480.37,0.00019999,2]
[362311407,1748182235127,-480.37,0.00019999,2]
[362311408,1748182235136,-480.37,0.00019999,2]
[362311409,1748182235146,-480.37,0.00019999,2]
[362311410,1748182235156,-480.39896285,0.00019999,2]
[362311411,1748182235165,-420.0,0.00019999,2]
[362311412,1748182235175,-420.0,0.00019999,2]
[362311413,1748182235184,-420.0,0.00019999,2]
[362311414,1748182235193,-420.0,0.00019999,2]
[362311415,1748182235204,-420.0,0.00019999,2]
[362311416,1748182235214,-420.0,0.00019999,2]
[362311417,1748182235224,-420.0,0.00019999,2]
[362311418,1748182235233,-420.0,0.00019999,2]
[362311419,1748182235243,-420.0,0.00019999,2]
[362311420,1748182235253,-420.0,0.00019999,2]
[362311421,1748182235262,-420.0,0.00019999,2]
[362311422,1748182235271,-420.0,0.00019999,2]
[362311423,1748182235280,-300.3,0.00019999,2]
[362311424,1748182235291,-420.0,0.00019999,2]
[362311425,1748182235300,-420.0,0.00019999,2]
[362311426,1748182235309,-1586.94,0.00019999,2]
[362311427,1748182235319,-420.0,0.00019999,2]
[362311428,1748182235328,-1147.850999,0.00019999,2]
[362311429,1748182235337,-1586.94,0.00019999,2]
[362311430,1748182235346,-420.0,0.00019999,2]
[362311431,1748182235355,-1586.94,0.00019999,2]
[362311432,1748182235364,-420.0,0.00019999,2]
[362311433,1748182235374,-1586.94,0.00019999,2]
[362311434,1748182235383,-420.0,0.00019999,2]
[362311435,1748182235393,-1586.94,0.00019999,2]
[362311436,1748182235402,-1586.94,0.00019999,2]
[362311437,1748182235411,-1586.94,0.00019999,2]
[362311438,1748182235421,-1586.94,0.00019999,2]
[362311439,1748182235431,-1586.94,0.00019999,2]
[362311440,1748182235441,-1586.94,0.00019999,2]
[362311441,1748182235452,-1586.94,0.00019999,2]
[362311442,1748182235462,-1586.94,0.00019999,2]
[362311443,1748182235472,-1586.94,0.00019999,2]
[362311444,1748182235482,-1586.94,0.00019999,2]
[362311445,1748182235493,-1586.94,0.00019999,2]
[362311446,1748182235502,-1586.94,0.00019999,2]
[362311447,1748182235512,-1586.94,0.00019999,2]
[362311448,1748182235523,-1586.94,0.00019999,2]